[Event "Nové Hrady - Blesk"]
[Site "Nové Hrady, Czech Republic"]
[Date "2023.08.18"]
[Round "10.6"]
[White "Valenz, Miroslav"]
[Black "Hostička, František"]
[Result "1-0"]
[TimeControl "2x3+2s"]
[WhiteFideId "326283"]
[BlackFideId "302295"]
[WhiteElo "1929"]
[BlackElo "2074"]

1. e4 {[%clk 00:03:02]} {[%emt 00:00:03]} Nf6 {[%clk 00:03:04]} 2. Nc3 {[%emt
00:00:02]} d5 3. exd5 {[%clk 00:03:02]} {[%emt 00:00:03]} Nxd5 {[%clk
00:03:07]} 4. Bc4 c6 {[%emt 00:00:02]} 5. Nge2 {[%clk 00:03:02]} {[%emt
00:00:03]} g6 {[%clk 00:03:04]} {[%emt 00:00:06]} 6. O-O {[%clk 00:03:02]}
{[%emt 00:00:02]} Bg7 {[%clk 00:03:05]} 7. d3 {[%clk 00:03:04]} O-O {[%clk
00:03:05]} {[%emt 00:00:03]} 8. Bg5 {[%clk 00:02:59]} {[%emt 00:00:07]} Be6
{[%clk 00:03:00]} {[%emt 00:00:07]} 9. Bb3 {[%clk 00:02:55]} {[%emt 00:00:06]}
h6 {[%clk 00:02:57]} {[%emt 00:00:05]} 10. Bh4 {[%clk 00:02:54]} {[%emt
00:00:03]} Na6 {[%clk 00:02:57]} {[%emt 00:00:02]} 11. Kh1 {[%clk 00:02:46]}
{[%emt 00:00:10]} Nc5 {[%clk 00:02:46]} {[%emt 00:00:13]} 12. Bg3 {[%clk
00:02:47]} Nxc3 {[%clk 00:02:38]} {[%emt 00:00:11]} 13. Nxc3 {[%clk 00:02:48]}
Nxb3 {[%clk 00:02:32]} {[%emt 00:00:09]} 14. axb3 {[%emt 00:00:02]} a6 {[%clk
00:02:32]} 15. Rb1 {[%clk 00:02:35]} {[%emt 00:00:16]} Kh7 {[%clk 00:02:30]}
{[%emt 00:00:04]} 16. Ne4 {[%clk 00:02:36]} b6 {[%clk 00:02:15]} {[%emt
00:00:17]} 17. f4 {[%clk 00:02:37]} f5 {[%clk 00:02:14]} {[%emt 00:00:06]} 18.
Nc3 {[%clk 00:02:33]} {[%emt 00:00:05]} Qd6 {[%clk 00:02:06]} {[%emt 00:00:10]}
19. Qf3 {[%clk 00:02:25]} {[%emt 00:00:10]} Bd5 {[%clk 00:01:53]} {[%emt
00:00:15]} 20. Qf2 {[%clk 00:02:14]} {[%emt 00:00:12]} c5 {[%clk 00:01:50]}
{[%emt 00:00:05]} 21. Rfe1 {[%clk 00:02:05]} {[%emt 00:00:11]} Bc6 {[%clk
00:01:43]} {[%emt 00:00:09]} 22. Bh4 {[%clk 00:02:02]} {[%emt 00:00:06]} Rae8
{[%clk 00:01:44]} 23. Re2 {[%clk 00:01:41]} {[%emt 00:00:23]} Bd4 {[%clk
00:01:30]} {[%emt 00:00:16]} 24. Qf1 {[%clk 00:01:39]} {[%emt 00:00:04]} b5
{[%clk 00:01:11]} {[%emt 00:00:21]} 25. Rbe1 {[%clk 00:01:40]} {[%emt
00:00:01]} b4 {[%clk 00:01:11]} 26. Rxe7+ {[%clk 00:01:31]} {[%emt 00:00:11]}
Kg8 {[%clk 00:01:02]} {[%emt 00:00:11]} 27. Nd1 {[%clk 00:01:05]} {[%emt
00:00:29]} Qd5 {[%clk 00:00:48]} {[%emt 00:00:16]} 28. c3 {[%clk 00:01:00]}
{[%emt 00:00:07]} Bg7 {[%clk 00:00:35]} {[%emt 00:00:15]} 29. Rxe8 {[%clk
00:00:31]} {[%emt 00:00:31]} Rxe8 {[%clk 00:00:35]} {[%emt 00:00:02]} 30. Rxe8+
{[%clk 00:00:32]} Bxe8 {[%clk 00:00:36]} 31. c4 {[%clk 00:00:25]} {[%emt
00:00:10]} Qd4 {[%clk 00:00:34]} {[%emt 00:00:03]} 32. Qe2 {[%clk 00:00:20]}
{[%emt 00:00:07]} Bf7 {[%clk 00:00:33]} {[%emt 00:00:04]} 33. Bf2 {[%clk
00:00:17]} {[%emt 00:00:05]} Qxf4 {[%clk 00:00:32]} {[%emt 00:00:02]} 34. Bxc5
{[%clk 00:00:18]} {[%emt 00:00:02]} Qc1 {[%clk 00:00:32]} {[%emt 00:00:02]} 35.
Bxb4 {[%clk 00:00:16]} {[%emt 00:00:03]} f4 {[%clk 00:00:23]} {[%emt 00:00:12]}
36. h3 {[%clk 00:00:16]} {[%emt 00:00:02]} Bxb2 {[%clk 00:00:15]} {[%emt
00:00:09]} 37. Kh2 {[%clk 00:00:14]} {[%emt 00:00:05]} Bg7 {[%clk 00:00:15]}
{[%emt 00:00:02]} 38. Nf2 {[%clk 00:00:10]} {[%emt 00:00:07]} Qb1 {[%clk
00:00:14]} {[%emt 00:00:02]} 39. Qe7 {[%clk 00:00:05]} {[%emt 00:00:07]} Qxb3
{[%clk 00:00:12]} {[%emt 00:00:04]} 40. Qd8+ {[%clk 00:00:05]} {[%emt
00:00:01]} Kh7 {[%clk 00:00:13]} 41. Qe7 {[%clk 00:00:06]} Bg8 {[%clk
00:00:12]} {[%emt 00:00:06]} 42. Ne4 {[%clk 00:00:04]} {[%emt 00:00:04]} Qb2
{[%clk 00:00:13]} 43. Bc3 {[%clk 00:00:04]} {[%emt 00:00:02]} Qxc3 {[%clk
00:00:12]} {[%emt 00:00:04]} 44. Nxc3 {[%clk 00:00:06]} Bxc3 {[%clk 00:00:13]}
1-0

[Event "Nové Hrady - Blesk"]
[Site "Nové Hrady, Czech Republic"]
[Date "2023.08.18"]
[Round "10.7"]
[White "Rausch, Rudolf"]
[Black "Blazek, Jiri"]
[Result "0-1"]
[TimeControl "2x3+2s"]
[WhiteFideId "1639455"]
[BlackFideId "330515"]
[WhiteElo "1806"]
[BlackElo "2061"]

1. d4 {[%clk 00:03:03]} {[%emt 00:00:12]} d5 {[%clk 00:03:03]} 2. c4 {[%emt
00:00:02]} e6 {[%emt 00:00:01]} 3. Nc3 {[%clk 00:03:05]} c6 {[%clk 00:03:05]}
{[%emt 00:00:02]} 4. Bf4 {[%clk 00:03:05]} {[%emt 00:00:02]} Bd6 {[%clk
00:03:06]} 5. Bxd6 {[%clk 00:03:05]} {[%emt 00:00:01]} Qxd6 {[%clk 00:03:07]} 6.
e3 {[%clk 00:03:05]} {[%emt 00:00:04]} Nd7 {[%clk 00:03:06]} {[%emt 00:00:02]}
7. Nf3 {[%clk 00:03:06]} f5 {[%clk 00:03:08]} 8. c5 {[%clk 00:02:52]} {[%emt
00:00:17]} Qe7 {[%clk 00:03:08]} {[%emt 00:00:01]} 9. a3 {[%clk 00:02:53]} Ngf6
{[%clk 00:03:09]} {[%emt 00:00:02]} 10. Rc1 {[%clk 00:02:54]} {[%emt 00:00:02]}
O-O {[%clk 00:03:08]} {[%emt 00:00:02]} 11. Bd3 {[%clk 00:02:54]} {[%emt
00:00:02]} Ne4 {[%clk 00:03:09]} 12. O-O {[%clk 00:02:50]} {[%emt 00:00:07]} e5
{[%clk 00:03:08]} {[%emt 00:00:03]} 13. dxe5 {[%clk 00:02:48]} {[%emt
00:00:04]} Nxe5 {[%clk 00:03:08]} {[%emt 00:00:02]} 14. Nxe5 {[%clk 00:02:48]}
Qxe5 {[%clk 00:03:09]} {[%emt 00:00:03]} 15. Nxe4 {[%clk 00:02:19]} {[%emt
00:00:32]} fxe4 {[%clk 00:03:09]} {[%emt 00:00:02]} 16. Be2 {[%clk 00:02:20]}
Qg5 {[%clk 00:03:07]} {[%emt 00:00:05]} 17. g3 {[%clk 00:02:18]} {[%emt
00:00:03]} Bh3 {[%clk 00:03:07]} {[%emt 00:00:02]} 18. Re1 {[%clk 00:02:19]}
Rxf2 {[%clk 00:02:17]} {[%emt 00:00:53]} 19. Kxf2 {[%clk 00:01:57]} {[%emt
00:00:24]} Rf8+ {[%clk 00:02:18]} 20. Kg1 {[%clk 00:01:55]} {[%emt 00:00:05]}
Qxe3+ {[%clk 00:02:18]} {[%emt 00:00:02]} 21. Kh1 {[%clk 00:01:57]} Rf2 {[%clk
00:01:27]} {[%emt 00:00:53]} 22. Bf1 {[%clk 00:01:32]} {[%emt 00:00:27]} Qh6
{[%clk 00:01:02]} {[%emt 00:00:26]} 23. Rc2 {[%clk 00:01:09]} {[%emt 00:00:26]}
Bg4 {[%clk 00:00:34]} {[%emt 00:00:31]} 24. Rxf2 {[%clk 00:00:52]} {[%emt
00:00:18]} Bxd1 25. Rxd1 {[%emt 00:00:02]} Qe3 {[%clk 00:00:32]} {[%emt
00:00:05]} 26. Rdd2 {[%clk 00:00:52]} {[%emt 00:00:04]} Qxc5 {[%clk 00:00:30]}
{[%emt 00:00:04]} 27. Kg2 {[%clk 00:00:42]} {[%emt 00:00:11]} Qe7 {[%clk
00:00:24]} {[%emt 00:00:08]} 28. Rf4 {[%clk 00:00:38]} {[%emt 00:00:05]} h6
{[%clk 00:00:25]} {[%emt 00:00:03]} 29. Rdf2 {[%clk 00:00:36]} {[%emt
00:00:04]} Qe5 {[%clk 00:00:23]} {[%emt 00:00:03]} 30. Rf5 {[%clk 00:00:31]}
{[%emt 00:00:08]} Qe6 {[%clk 00:00:21]} {[%emt 00:00:03]} 31. Rf8+ {[%clk
00:00:31]} {[%emt 00:00:02]} Kh7 {[%clk 00:00:22]} 32. R8f7 {[%clk 00:00:22]}
{[%emt 00:00:12]} c5 {[%clk 00:00:12]} {[%emt 00:00:13]} 33. Bb5 {[%clk
00:00:17]} {[%emt 00:00:07]} c4 {[%clk 00:00:09]} {[%emt 00:00:05]} 34. b3
{[%clk 00:00:14]} {[%emt 00:00:04]} e3 {[%clk 00:00:10]} 35. R2f6 {[%clk
00:00:06]} {[%emt 00:00:11]} Qe4+ {[%clk 00:00:08]} {[%emt 00:00:03]} 36. Kh3
{[%clk 00:00:07]} {[%emt 00:00:02]} e2 {[%clk 00:00:08]} {[%emt 00:00:03]} 37.
Bd7 {[%clk 00:00:03]} {[%emt 00:00:06]} e1=Q {[%clk 00:00:03]} {[%emt
00:00:06]} 38. Bf5+ {[%clk 00:00:04]} Qxf5+ {[%clk 00:00:04]} 39. Rxf5 {[%clk
00:00:03]} {[%emt 00:00:05]} cxb3 {[%clk 00:00:05]} 40. Rf1 {[%clk 00:00:03]}
{[%emt 00:00:03]} Qe6+ {[%clk 00:00:06]} 41. g4 {[%clk 00:00:04]} {[%emt
00:00:02]} b2 {[%clk 00:00:07]} 42. R7f2 {[%clk 00:00:04]} {[%emt 00:00:03]}
Qe3+ {[%clk 00:00:09]} 43. Kg2 {[%emt 00:00:02]} Qe4+ {[%emt 00:00:01]} 44. Kg1
{[%clk 00:00:05]} {[%emt 00:00:01]} Qd4 {[%clk 00:00:11]} 45. Kg2 {[%clk
00:00:06]} {[%emt 00:00:02]} Qe4+ {[%clk 00:00:12]} {[%emt 00:00:01]} 46. Kg3
{[%clk 00:00:07]} Qe3+ {[%clk 00:00:14]} 47. Rf3 {[%clk 00:00:08]} Qe5+ {[%clk
00:00:15]} 48. Kg2 {[%emt 00:00:05]} d4 49. Rf5 {[%clk 00:00:08]} Qe4+ {[%clk
00:00:17]} {[%emt 00:00:02]} 50. Kg3 {[%clk 00:00:09]} d3 {[%clk 00:00:18]} 51.
R1f4 {[%clk 00:00:10]} {[%emt 00:00:03]} Qe3+ {[%clk 00:00:19]} 52. Rf3 {[%clk
00:00:11]} Qxf3+ {[%clk 00:00:20]} 53. Rxf3 {[%clk 00:00:11]} {[%emt 00:00:04]}
b1=Q {[%clk 00:00:21]} {[%emt 00:00:02]} 54. Rf2 {[%clk 00:00:11]} {[%emt
00:00:02]} Qc2 {[%clk 00:00:22]} {[%emt 00:00:02]} 55. Kf3 {[%clk 00:00:11]}
{[%emt 00:00:01]} d2 {[%clk 00:00:23]} 56. Ke3 {[%clk 00:00:12]} {[%emt
00:00:03]} d1=Q {[%clk 00:00:17]} {[%emt 00:00:07]} 57. Rxc2 {[%clk 00:00:09]}
{[%emt 00:00:06]} Qxc2 {[%clk 00:00:17]} {[%emt 00:00:02]} 58. h4 {[%clk
00:00:11]} Qc3+ {[%clk 00:00:17]} {[%emt 00:00:02]} 59. Kf4 {[%clk 00:00:12]}
Qxa3 {[%clk 00:00:18]} 60. g5 {[%clk 00:00:13]} hxg5+ {[%clk 00:00:19]} 61.
hxg5 {[%clk 00:00:15]} Kg6 {[%clk 00:00:19]} {[%emt 00:00:02]} 62. Kg4 {[%clk
00:00:16]} Qb4+ {[%clk 00:00:20]} 63. Kg3 a5 {[%emt 00:00:03]} 64. Kh3 {[%clk
00:00:19]} a4 {[%clk 00:00:24]} 65. Kg2 {[%clk 00:00:21]} {[%emt 00:00:05]} 0-1

[Event "Nové Hrady - Blesk"]
[Site "Nové Hrady, Czech Republic"]
[Date "2023.08.18"]
[Round "10.8"]
[White "Richtrova, Eliska"]
[Black "Sadil, Antonin"]
[Result "1-0"]
[TimeControl "2x3+2s"]
[WhiteFideId "300683"]
[BlackFideId "23735597"]
[WhiteElo "2122"]
[BlackElo "1697"]

1. e4 {[%clk 00:03:03]} {[%emt 00:00:02]} c6 {[%clk 00:03:03]} {[%emt
00:00:02]} 2. Nc3 {[%clk 00:03:03]} d5 {[%clk 00:03:03]} {[%emt 00:00:02]} 3.
Nf3 {[%clk 00:03:04]} dxe4 {[%clk 00:03:04]} {[%emt 00:00:02]} 4. Nxe4 {[%clk
00:03:05]} Nf6 {[%clk 00:03:05]} {[%emt 00:00:03]} 5. Ng3 {[%clk 00:03:02]}
{[%emt 00:00:04]} Nbd7 {[%clk 00:03:01]} {[%emt 00:00:06]} 6. Bc4 {[%clk
00:03:00]} {[%emt 00:00:04]} e6 {[%clk 00:03:00]} {[%emt 00:00:02]} 7. O-O
{[%clk 00:03:00]} {[%emt 00:00:03]} Bd6 {[%clk 00:02:55]} {[%emt 00:00:07]} 8.
d4 {[%clk 00:02:59]} {[%emt 00:00:04]} O-O {[%clk 00:02:54]} {[%emt 00:00:03]}
9. Re1 {[%clk 00:02:58]} {[%emt 00:00:02]} b5 {[%clk 00:02:52]} {[%emt
00:00:05]} 10. Bb3 {[%clk 00:02:54]} {[%emt 00:00:06]} a5 {[%clk 00:02:51]}
{[%emt 00:00:02]} 11. a3 {[%clk 00:02:46]} {[%emt 00:00:10]} Bb7 {[%clk
00:02:43]} {[%emt 00:00:10]} 12. c3 {[%clk 00:02:17]} {[%emt 00:00:31]} Qc7
{[%clk 00:02:41]} {[%emt 00:00:04]} 13. Bc2 {[%clk 00:02:09]} {[%emt 00:00:10]}
c5 {[%clk 00:02:34]} {[%emt 00:00:09]} 14. Qd3 {[%clk 00:02:04]} {[%emt
00:00:07]} Nb6 {[%emt 00:00:45]} 15. Nh5 {[%clk 00:01:30]} {[%emt 00:00:34]}
Nbd5 {[%clk 00:01:26]} {[%emt 00:00:29]} 16. Nxf6+ {[%clk 00:01:26]} {[%emt
00:00:06]} Nxf6 {[%clk 00:01:26]} {[%emt 00:00:02]} 17. Bg5 {[%clk 00:01:27]}
c4 {[%clk 00:01:15]} {[%emt 00:00:15]} 18. Qe2 {[%clk 00:01:19]} {[%emt
00:00:09]} Be7 {[%clk 00:01:04]} {[%emt 00:00:16]} 19. Ne5 {[%clk 00:01:15]}
{[%emt 00:00:03]} Nd5 {[%clk 00:00:51]} {[%emt 00:00:15]} 20. Bd2 {[%clk
00:01:01]} {[%emt 00:00:17]} g6 {[%clk 00:00:34]} {[%emt 00:00:19]} 21. Qg4
{[%clk 00:00:54]} {[%emt 00:00:08]} Nf6 {[%clk 00:00:31]} {[%emt 00:00:05]} 22.
Qh3 {[%clk 00:00:54]} {[%emt 00:00:03]} Bd6 {[%clk 00:00:22]} {[%emt 00:00:10]}
23. Bg5 {[%clk 00:00:46]} {[%emt 00:00:10]} Bxe5 {[%clk 00:00:19]} {[%emt
00:00:04]} 24. Rxe5 {[%clk 00:00:39]} {[%emt 00:00:09]} Nh5 {[%clk 00:00:15]}
{[%emt 00:00:07]} 25. Bh6 {[%clk 00:00:35]} {[%emt 00:00:06]} Ng7 {[%clk
00:00:15]} {[%emt 00:00:03]} 26. Rae1 {[%clk 00:00:27]} {[%emt 00:00:10]} Qc6
{[%clk 00:00:16]} 27. f3 {[%clk 00:00:26]} {[%emt 00:00:04]} Rfd8 {[%clk
00:00:15]} {[%emt 00:00:02]} 28. Be4 {[%clk 00:00:25]} {[%emt 00:00:02]} Qc7
{[%clk 00:00:16]} 29. Bxg7 {[%clk 00:00:23]} {[%emt 00:00:05]} Bxe4 {[%clk
00:00:11]} {[%emt 00:00:08]} 30. Qh6 {[%clk 00:00:22]} {[%emt 00:00:03]} Bd3
{[%clk 00:00:06]} {[%emt 00:00:08]} 31. Bf6 {[%clk 00:00:23]} 1-0

[Event "Nové Hrady - Blesk"]
[Site "Nové Hrady, Czech Republic"]
[Date "2023.08.18"]
[Round "10.9"]
[White "Hokr, Matyas"]
[Black "Dudkova, Danka"]
[Result "0-1"]
[TimeControl "2x3+2s"]
[WhiteFideId "23734663"]
[BlackFideId "23718439"]
[WhiteElo "1472"]
[BlackElo "1650"]

1. Nf3 {[%clk 00:03:03]} {[%emt 00:02:20]} d5 {[%clk 00:03:00]} {[%emt
00:00:05]} 2. b3 {[%clk 00:03:04]} Nf6 {[%clk 00:03:00]} 3. Bb2 {[%clk
00:03:05]} Nc6 {[%clk 00:03:01]} {[%emt 00:00:03]} 4. e3 {[%clk 00:03:06]} Bg4
{[%clk 00:02:57]} {[%emt 00:00:06]} 5. c4 {[%clk 00:03:06]} e6 {[%clk
00:02:55]} {[%emt 00:00:07]} 6. h3 {[%clk 00:03:05]} {[%emt 00:00:03]} Bh5
{[%clk 00:02:55]} {[%emt 00:00:02]} 7. d4 {[%clk 00:02:45]} {[%emt 00:00:22]}
Bb4+ {[%clk 00:02:54]} {[%emt 00:00:02]} 8. Nc3 {[%clk 00:02:44]} {[%emt
00:00:04]} Ne4 {[%clk 00:02:54]} {[%emt 00:00:02]} 9. Qc2 {[%clk 00:02:31]}
{[%emt 00:00:13]} Bg6 {[%clk 00:02:53]} {[%emt 00:00:05]} 10. Qc1 {[%clk
00:02:27]} {[%emt 00:00:06]} Qf6 {[%clk 00:02:23]} {[%emt 00:00:32]} 11. a3
{[%clk 00:02:12]} {[%emt 00:00:17]} Bxc3+ {[%clk 00:02:19]} {[%emt 00:00:06]}
12. Bxc3 {[%clk 00:02:12]} {[%emt 00:00:02]} O-O {[%clk 00:02:04]} {[%emt
00:00:17]} 13. Be2 {[%clk 00:02:03]} {[%emt 00:00:10]} Rad8 {[%clk 00:01:53]}
{[%emt 00:00:14]} 14. O-O {[%clk 00:01:52]} {[%emt 00:00:13]} Qe7 {[%clk
00:01:42]} {[%emt 00:00:13]} 15. c5 {[%clk 00:01:46]} {[%emt 00:00:08]} f5
{[%clk 00:01:41]} {[%emt 00:00:03]} 16. b4 {[%clk 00:01:43]} {[%emt 00:00:05]}
a6 {[%clk 00:01:42]} 17. a4 {[%clk 00:01:43]} {[%emt 00:00:03]} b5 {[%clk
00:01:29]} {[%emt 00:00:15]} 18. axb5 {[%clk 00:01:33]} {[%emt 00:00:12]} axb5
{[%clk 00:01:30]} 19. Bxb5 {[%clk 00:01:34]} Nb8 {[%clk 00:01:18]} {[%emt
00:00:17]} 20. Ne5 {[%clk 00:01:32]} {[%emt 00:00:04]} Be8 {[%clk 00:01:12]}
{[%emt 00:00:08]} 21. Bxe8 {[%clk 00:01:14]} {[%emt 00:00:19]} Rdxe8 {[%clk
00:01:12]} {[%emt 00:00:02]} 22. f3 {[%clk 00:01:02]} {[%emt 00:00:14]} Nf6
{[%clk 00:01:06]} {[%emt 00:00:08]} 23. Rf2 {[%clk 00:01:02]} {[%emt 00:00:02]}
Nh5 {[%clk 00:01:02]} {[%emt 00:00:05]} 24. Rfa2 {[%clk 00:00:56]} {[%emt
00:00:09]} Nd7 {[%clk 00:00:58]} {[%emt 00:00:05]} 25. Nxd7 {[%clk 00:00:54]}
{[%emt 00:00:04]} Qxd7 {[%clk 00:00:59]} 26. Be1 {[%clk 00:00:52]} {[%emt
00:00:05]} f4 {[%clk 00:00:56]} {[%emt 00:00:06]} 27. Ra7 {[%clk 00:00:30]}
{[%emt 00:00:24]} e5 {[%clk 00:00:54]} {[%emt 00:00:05]} 28. c6 {[%clk
00:00:06]} {[%emt 00:00:26]} Qe7 {[%clk 00:00:48]} {[%emt 00:00:07]} 0-1

[Event "Nové Hrady - Blesk"]
[Site "Nové Hrady, Czech Republic"]
[Date "2023.08.18"]
[Round "10.10"]
[White "Dudková, Josefína"]
[Black "Garabik, Marek"]
[Result "0-1"]
[TimeControl "2x3+2s"]
[WhiteFideId "23712350"]
[BlackFideId "23717742"]
[WhiteElo "1437"]
[BlackElo "1578"]

1. d4 {[%clk 00:03:02]} {[%emt 00:00:02]} d5 {[%clk 00:03:02]} {[%emt
00:00:02]} 2. Bf4 {[%clk 00:03:03]} e6 {[%clk 00:03:03]} {[%emt 00:00:02]} 3.
Nf3 {[%clk 00:03:04]} {[%emt 00:00:02]} Nf6 {[%clk 00:03:04]} 4. e3 {[%clk
00:03:05]} Bd6 {[%clk 00:03:05]} {[%emt 00:00:03]} 5. Ne5 {[%clk 00:03:03]}
{[%emt 00:00:04]} Nbd7 {[%clk 00:02:50]} {[%emt 00:00:17]} 6. Bd3 {[%clk
00:02:59]} {[%emt 00:00:06]} Ne4 {[%clk 00:02:43]} {[%emt 00:00:08]} 7. Nd2
{[%clk 00:02:40]} {[%emt 00:00:21]} Nxd2 {[%clk 00:02:33]} {[%emt 00:00:11]} 8.
Qxd2 {[%clk 00:02:40]} {[%emt 00:00:04]} f6 {[%clk 00:02:33]} {[%emt 00:00:02]}
9. Nxd7 {[%clk 00:02:24]} {[%emt 00:00:17]} Qxd7 {[%clk 00:02:24]} {[%emt
00:00:11]} 10. Bg3 {[%clk 00:02:18]} {[%emt 00:00:08]} O-O {[%clk 00:02:18]}
{[%emt 00:00:08]} 11. O-O {[%clk 00:02:08]} {[%emt 00:00:12]} c6 {[%clk
00:02:19]} 12. c3 {[%clk 00:02:09]} {[%emt 00:00:02]} e5 {[%clk 00:02:20]}
{[%emt 00:00:01]} 13. Rfe1 {[%emt 00:00:08]} e4 {[%emt 00:00:01]} 14. Be2
{[%clk 00:01:59]} {[%emt 00:00:05]} f5 {[%clk 00:02:02]} {[%emt 00:00:21]} 15.
c4 {[%clk 00:01:48]} {[%emt 00:00:12]} g5 {[%clk 00:01:54]} {[%emt 00:00:11]}
16. f4 {[%clk 00:01:31]} {[%emt 00:00:20]} exf3 {[%clk 00:01:51]} {[%emt
00:00:04]} 17. gxf3 {[%clk 00:01:26]} {[%emt 00:00:07]} Bxg3 {[%clk 00:01:45]}
{[%emt 00:00:08]} 18. hxg3 {[%clk 00:01:26]} {[%emt 00:00:02]} Qd6 {[%clk
00:01:47]} 19. Kg2 {[%clk 00:01:20]} {[%emt 00:00:08]} Be6 {[%clk 00:01:41]}
{[%emt 00:00:08]} 20. b3 {[%clk 00:01:01]} {[%emt 00:00:21]} f4 {[%clk
00:01:29]} {[%emt 00:00:14]} 21. exf4 {[%clk 00:00:52]} {[%emt 00:00:11]} gxf4
{[%clk 00:01:30]} 22. g4 {[%clk 00:00:53]} {[%emt 00:00:02]} Rad8 {[%clk
00:01:07]} {[%emt 00:00:25]} 23. c5 {[%clk 00:00:49]} {[%emt 00:00:07]} Qd7
{[%clk 00:00:57]} {[%emt 00:00:12]} 24. Rh1 {[%clk 00:00:48]} {[%emt 00:00:02]}
Qf7 {[%clk 00:00:58]} 25. Bd3 {[%clk 00:00:43]} {[%emt 00:00:08]} Bxg4 {[%clk
00:00:16]} {[%emt 00:00:43]} 26. Bxh7+ {[%clk 00:00:29]} {[%emt 00:00:16]} Kg7
{[%clk 00:00:11]} {[%emt 00:00:08]} 27. fxg4 {[%clk 00:00:19]} {[%emt
00:00:12]} Qe6 {[%clk 00:00:11]} 28. Kf3 {[%clk 00:00:17]} {[%emt 00:00:04]}
Qe4+ {[%clk 00:00:12]} {[%emt 00:00:02]} 29. Kf2 {[%clk 00:00:13]} {[%emt
00:00:06]} Qe3+ {[%clk 00:00:07]} {[%emt 00:00:06]} 30. Qxe3 {[%clk 00:00:12]}
fxe3+ {[%clk 00:00:08]} 31. Kxe3 {[%emt 00:00:04]} Rde8+ 32. Kd2 {[%clk
00:00:05]} {[%emt 00:00:05]} Rf4 {[%clk 00:00:11]} 33. Raf1 {[%clk 00:00:00]}
{[%emt 00:00:08]} 0-1

[Event "Nové Hrady - Blesk"]
[Site "Nové Hrady, Czech Republic"]
[Date "2023.08.17"]
[Round "11.1"]
[White "Babula, Milan"]
[Black "Pulpan, Jakub"]
[Result "0-1"]
[TimeControl "2x3+2s"]
[WhiteFideId "300632"]
[BlackFideId "302759"]
[WhiteElo "2176"]
[BlackElo "2452"]

1. e4 {[%emt 00:00:03]} c5 {[%clk 00:03:03]} 2. Nc3 {[%clk 00:03:04]} {[%emt
00:00:02]} a6 {[%clk 00:03:04]} 3. f4 {[%clk 00:03:03]} {[%emt 00:00:03]} b5
{[%clk 00:03:05]} 4. a3 {[%clk 00:03:02]} {[%emt 00:00:02]} Bb7 {[%clk
00:03:05]} {[%emt 00:00:02]} 5. d3 {[%clk 00:03:02]} {[%emt 00:00:03]} Nf6
{[%clk 00:03:04]} {[%emt 00:00:03]} 6. Nf3 {[%clk 00:03:03]} d5 {[%clk
00:03:05]} 7. e5 {[%clk 00:02:59]} {[%emt 00:00:08]} d4 {[%clk 00:03:06]} 8.
exf6 {[%clk 00:02:39]} {[%emt 00:00:23]} dxc3 {[%clk 00:03:06]} {[%emt
00:00:02]} 9. bxc3 {[%clk 00:02:29]} {[%emt 00:00:12]} exf6 {[%clk 00:03:07]}
10. Be2 {[%clk 00:02:28]} {[%emt 00:00:03]} Bd6 {[%clk 00:03:06]} {[%emt
00:00:03]} 11. O-O {[%clk 00:02:27]} {[%emt 00:00:03]} O-O {[%clk 00:03:06]}
{[%emt 00:00:02]} 12. a4 {[%clk 00:02:22]} {[%emt 00:00:08]} Nd7 {[%clk
00:02:56]} {[%emt 00:00:11]} 13. axb5 {[%clk 00:02:21]} {[%emt 00:00:04]} axb5
{[%clk 00:02:56]} {[%emt 00:00:01]} 14. Rxa8 {[%clk 00:02:21]} Qxa8 {[%clk
00:02:57]} {[%emt 00:00:02]} 15. Bd2 {[%clk 00:02:11]} {[%emt 00:00:13]} Re8
{[%clk 00:02:55]} {[%emt 00:00:03]} 16. g3 {[%clk 00:02:06]} {[%emt 00:00:08]}
f5 {[%clk 00:02:49]} {[%emt 00:00:08]} 17. Rf2 {[%clk 00:02:00]} {[%emt
00:00:08]} Nf6 {[%clk 00:02:19]} {[%emt 00:00:32]} 18. h3 {[%clk 00:02:00]} c4
{[%clk 00:02:17]} {[%emt 00:00:05]} 19. Bf1 {[%clk 00:01:56]} {[%emt 00:00:07]}
cxd3 {[%clk 00:02:03]} {[%emt 00:00:15]} 20. cxd3 {[%clk 00:01:56]} {[%emt
00:00:03]} Bc5 {[%clk 00:02:03]} {[%emt 00:00:02]} 21. d4 {[%clk 00:01:56]}
{[%emt 00:00:02]} Bb6 {[%clk 00:02:01]} {[%emt 00:00:04]} 22. Bxb5 {[%clk
00:01:18]} {[%emt 00:00:40]} Rd8 {[%clk 00:02:01]} {[%emt 00:00:02]} 23. Bd3
{[%clk 00:01:10]} {[%emt 00:00:10]} Ne4 {[%clk 00:01:54]} {[%emt 00:00:10]} 24.
Rf1 {[%clk 00:01:03]} {[%emt 00:00:09]} Nxg3 {[%clk 00:01:53]} {[%emt
00:00:02]} 25. Rf2 {[%clk 00:00:56]} {[%emt 00:00:09]} Ne4 {[%clk 00:01:54]}
{[%emt 00:00:02]} 26. Rf1 {[%clk 00:00:55]} {[%emt 00:00:02]} Nxd2 {[%clk
00:01:46]} {[%emt 00:00:09]} 27. Nxd2 {[%clk 00:00:55]} {[%emt 00:00:03]} Bg2
{[%clk 00:01:34]} {[%emt 00:00:15]} 28. Rf2 {[%clk 00:00:47]} {[%emt 00:00:09]}
Bxh3 {[%clk 00:01:34]} 29. Kh2 {[%clk 00:00:42]} {[%emt 00:00:09]} Bg4 {[%clk
00:01:34]} {[%emt 00:00:02]} 30. Qb3 {[%emt 00:00:03]} Rd6 {[%clk 00:01:30]}
{[%emt 00:00:04]} 31. Kg3 {[%clk 00:00:31]} {[%emt 00:00:13]} Rg6 {[%clk
00:01:31]} 0-1